bitfinex-derivatives/quotes_ETHF0:USTF0_20250528
["timestamp","ask_amount","ask_price","bid_price","bid_amount"]
[1748444247634,0.75968,2631.7,2630.4,3.2078]
[1748444247635,0.75981,2631.3,2631.2,0.75979]
[1748444248240,1.3325,2631.5,2631.4,0.75976]
[1748444248629,2.09223,2631.5,2631.4,0.75976]
[1748444249334,3.21349292,2631.7,2631.2,4.51609292]
[1748444249536,0.75975,2631.5,2631.4,0.75973]
[1748444250433,2.07992,2631.6,2631.5,0.75973]
[1748444250629,1.3202,2631.6,2631.5,0.75973]
[1748444251032,2.07991,2631.6,2631.5,0.75973]
[1748444253730,0.75976,2631.5,2631.4,0.75974]
[1748444253938,1.2676,2631.5,2631.4,0.75974]
[1748444254138,2.02733,2631.5,2631.4,0.75974]
[1748444254936,1.2676,2631.5,2631.4,0.75974]
[1748444256231,1.2676,2631.5,2631.2,3.21349292]
[1748444256425,0.75979,2631.3,2631.2,0.76551292]
[1748444257030,0.75979,2631.3,2631.2,0.00569292]
[1748444257636,2.10269,2631.3,2631.2,0.00569292]
[1748444257833,0.75988,2631.0,2630.9,0.7599]
[1748444258634,0.75993,2630.9,2630.8,0.75992]
[1748444260639,0.6416,2631.2,2630.7,1.2879]
[1748444260834,1.40142,2631.2,2631.1,0.75983]
[1748444261244,0.7598,2631.3,2631.2,0.75978]
[1748444261441,1.98995,2631.4,2631.3,0.75977]
[1748444261739,1.2302,2631.4,2631.3,0.75977]
[1748444262739,0.00569292,2631.7,2631.6,0.75968]
[1748444263037,0.00569292,2631.7,2631.6,3.85348]
[1748444266738,0.00569292,2631.7,2631.6,3.2078]
[1748444266941,0.00569292,2631.7,2631.4,1.9519]
[1748444267146,0.7597,2631.6,2631.5,0.75969]
[1748444267347,0.7597,2631.6,2631.5,2.02509]
[1748444267846,0.7597,2631.6,2631.5,2.66339]
[1748444268150,0.76537292,2631.7,2631.6,0.75969]
[1748444268351,0.00569292,2631.7,2631.6,0.75969]
[1748444269948,0.76535292,2631.7,2631.6,0.75969]
[1748444271247,0.75969,2631.6,2631.5,2.66339]
[1748444271444,1.99117292,2631.7,2631.6,0.75969]
[1748444271849,0.00569292,2631.7,2631.6,3.96749]
[1748444274555,0.00569292,2631.7,2631.6,8.96749]
[1748444274754,0.1139,2631.9,2631.8,0.75963]
[1748444275349,5.10639,2632.5,2632.4,0.75946]
[1748444275350,3.96725,2632.5,2632.4,0.75946]
[1748444275648,5.10607,2633.0,2632.3,5.1065]
[1748444275852,0.75936,2632.8,2632.7,0.75934]
[1748444276355,2.00136,2632.8,2632.7,0.75934]
[1748444277161,0.75943,2632.5,2632.4,0.00569292]
[1748444277459,3.96723,2632.5,2632.4,0.00569292]
[1748444277753,3.96723,2632.5,2632.4,0.76515292]
[1748444277953,0.75943,2632.5,2632.4,0.76515292]
[1748444278154,3.96723,2632.5,2632.4,0.76515292]
[1748444279059,3.96723,2632.5,2632.4,0.00569292]
[1748444281253,3.96723,2632.5,2632.4,0.76515292]
[1748444281565,3.96723,2632.5,2632.4,0.00569292]
[1748444282860,8.96723,2632.5,2632.4,0.00569292]
[1748444284357,0.7596,2631.9,2631.8,3.2078]
[1748444284756,0.75969,2631.6,2631.5,1.9507]
[1748444285059,1.3535,2631.8,2631.7,0.75966]
[1748444285253,1.39007,2632.0,2631.9,0.7596]
[1748444287762,0.75963,2631.8,2631.7,0.00569292]
[1748444287966,3.96743,2631.8,2631.7,0.00569292]
[1748444289257,8.96743,2631.8,2631.7,0.00569292]
[1748444290263,3.96743,2631.8,2631.7,0.00569292]
[1748444290662,8.96743,2631.8,2631.7,0.00569292]
[1748444292360,3.96743,2631.8,2631.7,0.00569292]
[1748444294667,2.05282,2631.9,2631.8,0.75963]
[1748444295262,0.75963,2631.8,2631.7,0.76533292]
[1748444295570,2.07633,2631.8,2631.7,0.76533292]
[1748444296173,2.07633,2631.8,2631.7,2.03953292]
[1748444296373,0.1139,2632.0,2631.9,0.7596]
[1748444296872,0.1139,2632.0,2631.9,2.0338]
[1748444297360,0.75963,2631.8,2631.7,0.00569292]
[1748444297561,3.96743,2631.8,2631.7,0.00569292]
[1748444298067,0.75963,2631.8,2631.7,0.76535292]
[1748444298265,0.75963,2631.8,2631.7,0.00569292]
[1748444298665,2.10053,2631.8,2631.7,0.00569292]
[1748444298966,5.30833,2631.8,2631.7,0.00569292]
[1748444301374,5.30833,2631.8,2631.7,0.76535292]
[1748444301682,0.8735,2632.0,2631.9,0.7596]
[1748444302670,0.75963,2631.8,2631.7,1.31619292]
[1748444303071,0.75963,2631.8,2631.7,2.07585292]
[1748444303975,0.1139,2632.0,2631.7,3.21534292]
[1748444304179,0.8735,2632.0,2631.9,0.7596]
[1748444304370,0.7596,2631.9,2631.8,1.2544]
[1748444304876,2.0306,2631.9,2631.8,1.2544]
[1748444305074,0.75963,2631.8,2631.7,0.76534292]
[1748444305377,0.75963,2631.8,2631.7,0.76535292]
[1748444305578,0.75963,2631.8,2631.7,2.01975292]
[1748444306179,0.75963,2631.8,2631.7,1.26009292]
[1748444307774,0.75963,2631.8,2631.7,0.00569292]
[1748444308576,1.82920641,2631.8,2631.7,2.92e-06]
[1748444308970,3.13600641,2631.8,2631.7,2.92e-06]
[1748444310375,8.13600641,2631.8,2631.7,2.92e-06]
[1748444310778,1.06957641,2631.8,2631.7,0.75966292]
[1748444310973,0.1139,2632.0,2631.9,0.7596]
[1748444311377,0.7596,2631.9,2631.8,1.929]
[1748444311577,0.7596,2631.9,2631.8,19.665]
[1748444313085,0.7596,2631.9,2631.8,1.929]
[1748444313283,0.7596,2631.9,2631.8,2.68863]
[1748444314281,0.7596,2631.9,2631.8,0.629]
[1748444314482,3.3217,2632.0,2631.8,0.629]
[1748444314686,0.1139,2632.0,2631.9,2.0777]
[1748444314885,0.1139,2632.0,2631.9,2.7276]
[1748444315484,0.87347,2632.0,2631.9,2.0777]
[1748444315882,0.87347,2632.0,2631.9,1.3181]
[1748444316082,0.7596,2631.9,2631.8,0.629]
[1748444316279,2.081,2631.9,2631.8,0.629]
[1748444317282,0.75963,2631.8,2631.7,2.92e-06]
[1748444317485,2.08103,2631.8,2631.7,2.92e-06]
[1748444317884,3.12605682,2631.8,2631.7,2.92e-06]
[1748444318791,1.89937,2631.4,2630.8,0.6324]
[1748444319088,1.89966,2631.0,2630.4,1.9797]
[1748444319298,0.76,2630.6,2630.5,4.60099]
[1748444319487,0.75996,2630.7,2630.6,0.75997]
[1748444319988,0.75998,2630.6,2630.5,2.04328]
[1748444320187,0.75998,2630.6,2630.5,5.1243]
[1748444321789,0.75998,2630.6,2630.5,1.2833]
[1748444322291,0.76,2630.5,2630.4,0.68119292]
[1748444322994,0.76,2630.5,2630.4,2.70642292]
[1748444323188,0.76,2630.5,2630.4,1.94639292]
[1748444323491,3.9678,2630.5,2630.4,0.68119292]
[1748444324790,3.9678,2630.5,2630.4,2.92e-06]
[1748444325886,0.76035,2629.3,2629.2,3.842]
[1748444326090,0.76038,2629.2,2629.1,0.629]
[1748444326294,0.76038,2629.2,2629.1,1.917]
[1748444326995,0.76603386,2629.4,2629.3,0.76035]
[1748444327191,0.76603386,2629.4,2629.3,3.96815]
[1748444327192,0.00570386,2629.4,2629.3,3.96815]
[1748444327390,2.53016,2630.2,2629.8,0.7602]
[1748444327586,2.53016,2630.2,2629.6,7.0498]
[1748444327587,0.76017,2630.0,2629.6,7.0498]
[1748444327790,0.87414,2630.1,2630.0,0.76015]
[1748444328196,0.7602,2629.9,2629.8,0.76019]
[1748444328388,0.76017,2630.0,2629.9,0.76016]
[1748444328890,0.76021,2629.8,2629.7,2.04822]
[1748444329191,0.76019,2629.9,2629.8,0.76019]
[1748444329392,0.76019,2629.9,2629.8,0.76018]
[1748444329592,0.76016,2630.0,2629.9,0.76015]
[1748444329788,0.76024,2629.7,2629.6,3.96807]
[1748444329993,1.2839,2629.9,2629.6,3.2078]
[1748444330290,1.2839,2629.9,2629.5,0.6468]
[1748444330291,0.76039,2629.2,2629.1,0.76038]
[1748444330491,0.76039,2629.2,2629.1,0.6345]
[1748444330697,0.76038,2629.3,2629.2,0.76037]
[1748444330888,0.76038,2629.2,2629.1,0.6345]
[1748444331089,0.76044,2629.0,2628.9,0.00570386]
[1748444331293,3.2078,2629.0,2628.3,3.2078]
[1748444331596,0.76057,2628.6,2628.5,0.76057]
[1748444331888,0.6431,2629.5,2628.4,4.4694]
[1748444332093,0.76042,2629.1,2629.0,0.76042]
[1748444332291,0.76041,2629.1,2629.0,0.6264]
[1748444332691,2.05629,2629.2,2629.0,0.6264]
[1748444332893,0.76041,2629.1,2629.0,0.6264]
[1748444333392,1.2959,2629.2,2629.1,0.76041]
[1748444333598,1.2959,2629.2,2628.8,3.84870386]
[1748444333896,1.2959,2629.2,2629.1,0.76041]
[1748444334198,0.00570386,2629.3,2629.2,0.76038]
[1748444334392,0.76605386,2629.3,2629.2,4.60438]
[1748444334594,0.00570386,2629.3,2629.2,3.844]
[1748444334795,0.76047,2628.9,2628.8,0.63210386]
[1748444335091,1.2299,2629.2,2628.8,0.63210386]
[1748444335295,0.76047,2628.9,2628.8,3.86e-06]
[1748444335599,0.76047,2628.9,2627.9,0.6237]
[1748444335600,1.90132,2628.7,2627.9,0.6237]
[1748444335805,3.2078,2628.5,2627.9,0.6237]
[1748444336094,1.90158,2628.4,2627.9,0.6237]
[1748444336304,1.90158,2628.4,2627.8,3.2078]
[1748444336305,1.90161,2628.3,2627.5,3.2078]
[1748444336496,1.90183,2628.0,2627.5,3.2078]
[1748444336696,3.2078,2628.1,2627.5,3.2078]
[1748444336697,1.2299,2627.9,2627.6,0.0038208]
[1748444336996,0.76081,2627.7,2627.6,0.7646508]
[1748444337202,0.76081,2627.7,2627.6,0.0038208]
[1748444337798,3.96861,2627.7,2627.6,0.0038208]
[1748444337999,3.2078,2627.7,2627.6,0.7646608]
[1748444338201,0.76081,2627.7,2627.6,0.0038208]
[1748444338396,3.96861,2627.7,2627.6,0.0038208]
[1748444338702,0.00570386,2627.9,2627.8,0.76079]
[1748444340588,0.00570386,2627.9,2627.8,4.78979]
[1748444340790,0.00570386,2627.9,2627.8,0.76079]
[1748444341192,0.00570386,2627.9,2627.7,3.2078]
[1748444341592,0.00570386,2627.9,2627.8,4.78979]
[1748444341796,0.6534,2628.5,2628.0,1.90183]
[1748444341996,0.6534,2628.5,2628.0,3.2078]
[1748444342192,1.237,2628.4,2628.3,0.76062]
[1748444342392,1.237,2628.4,2628.2,4.029]
[1748444342692,0.6534,2628.5,2628.4,0.76061]
[1748444342898,3.21350386,2628.7,2628.6,0.76055]
[1748444343094,0.00570386,2628.7,2628.6,7.99735]
[1748444343603,3.2078,2629.4,2629.3,0.76035]
[1748444343995,0.76032,2629.5,2629.4,0.76032]
[1748444344294,3.2078,2629.6,2629.5,0.76029]
[1748444344607,0.00570386,2629.8,2629.5,4.03]
[1748444344796,1.36440386,2629.8,2629.7,0.76021]
[1748444345098,0.00570386,2629.8,2629.7,0.76021]
[1748444345595,0.08175527,2629.8,2629.7,0.76021]
[1748444346896,0.08175527,2629.8,2629.7,1.41621]
[1748444347304,0.08175527,2629.8,2629.7,5.44521]
[1748444348200,3.2078,2630.2,2629.7,9.685]
[1748444348495,0.76004,2630.4,2630.1,3.2078]
[1748444348696,0.76004,2630.4,2630.3,0.76005]
[1748444348898,0.76003,2630.4,2630.3,0.76005]
[1748444349102,0.76003,2630.4,2630.3,6.11415]
[1748444349297,0.76021,2629.8,2629.7,0.656]
[1748444349496,0.76021,2629.8,2629.4,4.029]
[1748444349497,3.2078,2629.8,2629.4,1.3251]
[1748444349800,0.76029,2629.5,2629.4,1.3251]
[1748444350006,1.2318,2629.7,2629.3,4.03370386]
[1748444350007,0.76032,2629.4,2629.3,4.03370386]
[1748444350300,0.76026,2629.7,2629.5,0.76028]
[1748444350508,3.2078,2629.8,2629.4,0.76031]
[1748444350699,1.2318,2630.0,2629.5,1.3452]
[1748444351002,0.76027,2629.6,2629.5,1.3452]
[1748444351202,0.114,2629.9,2629.5,5.3732]
[1748444351394,0.76027,2629.6,2629.5,6.13348]
[1748444351602,0.76025,2629.7,2629.6,0.76026]
[1748444351801,0.76025,2629.7,2629.6,0.76027]
[1748444352609,1.3458,2629.9,2629.5,6.13348]
[1748444352907,1.3458,2629.9,2629.5,5.3732]
[1748444353110,0.76027,2629.6,2629.5,6.13348]
[1748444353406,1.3458,2629.9,2629.5,5.3732]
[1748444353703,0.76025,2629.7,2629.6,0.76026]
[1748444354109,1.3458,2629.9,2629.5,5.3732]
[1748444354408,0.76021,2629.8,2629.7,0.76022]
[1748444355604,0.76021,2629.8,2629.4,3.2078]
[1748444355605,0.76029,2629.5,2629.4,3.2078]
[1748444355907,0.76032,2629.4,2629.3,3.86e-06]
[1748444356104,2.07682,2629.4,2629.3,3.86e-06]
[1748444358410,7.07682,2629.4,2629.3,3.86e-06]
[1748444358610,0.76053,2628.7,2628.6,3.2078]
[1748444358904,0.7605,2628.9,2628.8,0.76048]
[1748444359103,0.7605,2628.9,2628.8,4.029]
[1748444359310,2.0737,2628.9,2628.8,4.029]
[1748444359700,2.0737,2628.9,2628.6,4.44820386]
[1748444359701,6.90118,2628.9,2628.6,0.00570386]
[1748444359899,1.90142,2628.6,2627.8,3.2078]
[1748444360105,3.2078,2628.4,2627.9,6.02445]
[1748444360405,1.3132,2628.3,2627.8,3.2078]
[1748444360604,0.76076,2627.9,2627.8,7.2368]
[1748444360909,0.76075,2628.0,2627.8,7.2368]
[1748444361109,1.3132,2628.1,2627.8,7.99756]
[1748444361301,0.76075,2628.0,2627.9,1.2347]
[1748444361504,0.7607,2628.2,2627.9,1.2347]
[1748444361807,3.2078,2628.4,2627.9,1.2347]
[1748444361808,0.7607,2628.1,2628.0,0.76071]
[1748444362006,4.4567,2628.4,2628.0,1.43542]
[1748444362203,0.76069,2628.2,2628.1,5.3883]
[1748444362407,0.76067,2628.2,2628.1,6.149]
[1748444362607,0.76078,2627.9,2627.8,4.029]
[1748444362808,2.00962,2628.1,2628.0,0.76073]
[1748444363010,1.2489,2628.1,2627.8,4.029]
[1748444363208,0.76074,2628.0,2627.9,2.12005]
[1748444363405,1.2489,2628.1,2628.0,0.76073]
[1748444363611,2.0096,2628.1,2628.0,5.3883]
[1748444364309,2.0096,2628.1,2628.0,1.3593]
[1748444364509,2.0096,2628.1,2628.0,4.03]
[1748444364711,0.76076,2627.9,2627.8,0.76078]
[1748444365013,0.76076,2627.9,2627.8,4.03]
[1748444365514,0.76076,2627.9,2627.8,5.3457]
[1748444366116,0.76076,2627.9,2627.8,6.10649]
[1748444366308,0.76082,2627.7,2627.6,0.00570386]
[1748444366509,1.3113,2627.8,2627.7,0.76082]
[1748444366715,1.3113,2627.8,2627.6,6.20122386]
[1748444367019,0.76082,2627.7,2627.6,0.76653386]
[1748444367217,0.76082,2627.7,2627.6,4.88554386]
[1748444367414,2.0721,2627.8,2627.7,0.76082]
[1748444367921,0.76082,2627.7,2627.6,6.20123386]
[1748444368107,0.76082,2627.7,2627.6,4.12470386]
[1748444368417,0.76082,2627.7,2627.6,4.88554386]
[1748444368720,0.76082,2627.7,2627.6,0.76653386]
[1748444368920,0.76082,2627.7,2627.6,2.12053386]
[1748444369219,1.3113,2627.8,2627.7,0.76082]
[1748444369920,1.3113,2627.8,2627.7,4.87982]
[1748444370220,0.76071,2628.1,2628.0,0.76069]
[1748444370424,2.08801,2628.1,2628.0,0.76069]
[1748444370618,1.90142,2628.6,2628.0,3.2078]
[1748444370619,3.2078,2628.6,2628.0,3.2078]
[1748444370924,2.22179138,2628.9,2628.4,0.76061]
[1748444370925,1.90126,2628.8,2628.4,0.76061]
[1748444371214,1.90126,2628.8,2628.1,7.26636]
[1748444371215,0.76051,2628.8,2628.7,0.7605]
[1748444371419,3.16678,2628.8,2628.2,1.2456]
[1748444371613,3.2078,2628.3,2627.7,2.54879]
[1748444371811,3.2078,2628.3,2627.3,3.2078]
[1748444371812,0.76076,2627.9,2627.6,4.12470386]
[1748444372015,0.76082,2627.7,2627.6,0.00570386]
[1748444372217,3.96862,2627.7,2627.6,0.00570386]
[1748444380620,3.96862,2627.7,2627.6,0.76654386]
[1748444380621,3.2078,2627.7,2627.6,0.76654386]
[1748444381330,3.96862,2627.7,2627.6,0.76654386]
[1748444381624,3.96862,2627.7,2627.6,0.00570386]
[1748444382323,0.1141,2627.9,2627.8,0.76079]
[1748444382517,3.2078,2628.6,2628.5,0.76058]
[1748444382826,5.29346,2628.6,2628.5,0.76058]
[1748444383121,0.76058,2628.5,2628.4,2.07669]
[1748444383325,1.2338,2628.5,2628.4,2.07669]
[1748444383521,1.9009,2628.8,2628.7,0.76053]
[1748444383721,0.00570386,2629.1,2629.0,0.76044]
[1748444384722,0.00570386,2629.1,2629.0,4.88044]
[1748444386522,0.00570386,2629.1,2629.0,6.18184]
[1748444389624,0.00570386,2629.1,2629.0,24.28384]
[1748444389816,0.114,2629.3,2629.2,0.76038]
[1748444390324,2.0479,2629.9,2629.8,0.76021]
[1748444391426,2.0479,2629.9,2629.7,1.3225]
[1748444391427,0.76021,2629.8,2629.7,2.08272]
[1748444392119,1.2877,2629.9,2629.8,0.76021]
[1748444392319,2.04788,2629.9,2629.8,1.3622]
[1748444392520,2.04788,2629.9,2629.8,2.12241]
[1748444392920,1.2877,2629.9,2629.8,2.12241]
[1748444393128,0.76018,2629.9,2629.8,2.12239]
[1748444393421,1.4285,2630.0,2629.8,1.3622]
[1748444393629,1.4285,2630.0,2629.9,0.76018]
[1748444394125,2.18867,2630.0,2629.9,0.76018]
[1748444394315,0.76018,2629.9,2629.8,2.12239]
[1748444394520,1.90047,2629.9,2629.6,0.00570386]
[1748444394720,3.96804,2629.7,2629.6,0.00570386]
[1748444395216,1.3146,2629.8,2629.6,0.00570386]
[1748444395518,2.07482,2629.8,2629.6,2.09484386]
[1748444395821,2.07482,2629.8,2629.7,1.3289]
[1748444396335,0.76024,2629.7,2629.6,0.00570386]
[1748444396622,2.05274,2629.7,2629.6,0.00570386]
[1748444397525,0.76024,2629.7,2629.6,1.33460386]
[1748444397729,3.96804,2629.7,2629.6,0.00570386]
[1748444398423,3.96804,2629.7,2629.4,0.7603]
[1748444398424,0.76053,2628.7,2628.3,3.2078]
[1748444398631,0.76053,2628.7,2628.4,0.615]
[1748444398632,0.76055,2628.7,2628.4,0.615]
[1748444398923,0.76055,2628.7,2628.6,0.76054]
[1748444399329,0.76055,2628.6,2628.5,2.01947]
[1748444399530,0.76055,2628.7,2628.6,0.76055]
[1748444399920,0.76055,2628.6,2628.5,1.2589]
[1748444400120,0.76058,2628.5,2628.4,0.62070386]
[1748444400316,2.06898,2628.5,2628.4,0.00570386]
[1748444400530,2.06898,2628.5,2628.4,1.26460386]
[1748444400723,2.06898,2628.5,2628.4,0.00570386]
[1748444401426,0.76076,2627.9,2627.8,1.3108]
[1748444402128,0.76076,2627.9,2627.6,0.00992613]
[1748444402129,0.76081,2627.7,2627.6,0.00992613]
[1748444402628,3.2078,2628.2,2628.1,0.7607]
[1748444402929,1.43062,2628.4,2627.8,7.3148]
[1748444403123,0.67,2628.4,2628.2,0.76066]
[1748444403323,0.67,2628.4,2627.9,1.3108]
[1748444403531,2.04996,2628.3,2628.1,0.7607]
[1748444403731,1.2893,2628.3,2628.2,0.76067]
[1748444405030,1.43062,2628.4,2628.2,0.76066]
[1748444405234,1.43062,2628.4,2627.9,1.3108]
[1748444405436,0.76065,2628.3,2627.9,1.3108]
[1748444405637,1.3005,2628.3,2628.1,0.76068]
[1748444405828,2.06116,2628.3,2628.2,0.76067]
[1748444406033,1.3005,2628.3,2628.2,0.76067]
[1748444407033,0.67,2628.4,2628.3,0.76064]
[1748444407229,3.2078,2628.6,2628.5,0.76058]
[1748444407438,0.00570386,2628.9,2628.8,0.7605]
[1748444407931,0.00570386,2628.9,2628.5,1.3631]
[1748444408131,0.76051,2628.8,2628.7,0.76052]
[1748444408745,0.00570386,2628.9,2628.8,0.7605]
[1748444409242,6.00854,2629.8,2628.8,0.7605]
[1748444409243,3.2078,2629.3,2629.2,0.76038]
[1748444409934,3.2078,2629.3,2629.2,2.12348]
[1748444410135,3.96815,2629.3,2629.2,2.12348]
[1748444410333,0.00570386,2629.5,2629.4,0.76032]
[1748444410936,0.00570386,2629.5,2629.4,5.76032]
[1748444411136,0.00570386,2629.5,2629.4,7.01842]
[1748444411738,0.00570386,2629.5,2629.4,6.2581]
[1748444411936,0.76035,2629.3,2629.2,1.2458]
[1748444412142,3.21350386,2629.5,2629.2,2.00617]
[1748444412449,0.76041,2629.1,2629.0,0.43034386]
[1748444412742,3.2078,2629.1,2628.4,3.1596]
[1748444412942,1.90647386,2629.5,2628.7,0.76053]
[1748444412943,3.2078,2628.8,2628.7,0.76053]
[1748444413941,3.2078,2629.1,2628.7,0.76053]
[1748444414144,3.21350386,2629.5,2628.9,5.10897]
[1748444414445,3.21350386,2629.5,2629.0,5.3499]
[1748444414648,3.21350386,2629.5,2629.4,0.76032]
[1748444415144,0.76032,2629.4,2629.3,0.76033]
[1748444415546,3.21350386,2629.5,2628.9,18.5199]
[1748444415842,0.76038,2629.3,2629.2,1.2429]
[1748444416841,3.21350386,2629.5,2629.2,2.00326]
[1748444417044,3.21350386,2629.5,2629.4,0.76032]
[1748444417045,3.97381386,2629.5,2629.4,0.76032]
[1748444417243,0.00570386,2629.5,2629.4,0.76032]
[1748444417446,3.3217,2630.0,2629.8,0.76018]
[1748444417648,4.08185,2630.0,2629.9,1.2369]
[1748444417851,4.08185,2630.0,2629.9,19.3239]
[1748444418245,0.87405,2630.0,2629.9,19.3239]
[1748444419044,0.87405,2630.0,2629.9,19.3129]
[1748444419240,0.76015,2630.0,2629.9,19.3129]
[1748444420450,3.96795,2630.0,2629.9,19.3129]
[1748444420644,0.76015,2630.0,2629.9,19.3129]
[1748444421748,0.76015,2630.0,2629.9,1.99708]
[1748444421945,0.76015,2630.0,2629.9,24.15708]
[1748444422253,0.76015,2630.0,2629.9,23.3969]
[1748444422743,0.11960386,2630.2,2629.9,23.3969]
[1748444422945,0.11960386,2630.2,2630.1,0.76012]
[1748444423146,3.2078,2631.0,2630.4,1.90004]
[1748444423348,3.96769,2631.0,2630.9,0.75989]
[1748444423549,3.2078,2631.0,2630.9,18.054]
[1748444423745,1.39389,2631.3,2630.9,25.3678]
[1748444423951,0.75976,2631.4,2631.0,1.2461]
[1748444424251,3.21350386,2631.5,2631.3,0.75977]
[1748444424553,3.97322386,2631.5,2631.4,1.2461]
[1748444425451,0.75986,2631.0,2630.9,0.00570386]
[1748444425648,1.2496,2631.4,2630.9,23.41780386]
[1748444426053,0.75984,2631.1,2631.0,0.75985]
[1748444426354,0.00570386,2631.5,2631.2,0.75979]
[1748444426545,0.76544386,2631.5,2631.3,5.3847]
[1748444426745,0.00570386,2631.5,2631.4,0.75975]
[1748444426945,0.00570386,2631.5,2631.4,2.03845]
[1748444427448,0.76542386,2631.5,2631.4,1.2787]
[1748444427649,0.76542386,2631.5,2631.4,23.4407]
[1748444428454,0.76542386,2631.5,2631.2,4.781]
[1748444428455,0.75977,2631.3,2631.2,4.781]
[1748444428754,0.75977,2631.3,2631.2,22.153]
[1748444430254,1.2708,2631.4,2631.2,22.91279]
[1748444430557,2.03055,2631.4,2631.3,1.358]
[1748444430849,0.00570386,2631.5,2631.3,23.495]
[1748444431050,0.00570386,2631.5,2631.4,0.75975]
[1748444431256,0.75959,2632.0,2631.9,0.75959]
[1748444431752,3.2078,2632.3,2631.8,4.105]
[1748444431949,0.75957,2632.0,2631.9,1.3148]
[1748444432253,0.75957,2632.0,2631.9,24.2104]
[1748444432449,0.75956,2632.1,2631.9,23.4508]
[1748444432656,1.36240386,2632.2,2631.9,23.4508]
[1748444432857,0.75956,2632.1,2632.0,0.75954]
[1748444433055,0.75956,2632.1,2632.0,2.07437]
[1748444433248,0.75954,2632.1,2632.0,1.3148]
[1748444433548,0.75954,2632.1,2632.0,2.07434]
[1748444434253,0.75955,2632.1,2632.0,1.3148]
[1748444434557,2.12193386,2632.2,2632.1,0.75955]
[1748444434852,0.75963,2631.8,2631.7,3.96744]
[1748444435055,0.75963,2631.8,2631.7,22.88164]
[1748444435252,0.75957,2632.1,2632.0,0.75955]
[1748444435858,0.75957,2632.1,2632.0,18.77655]
[1748444436347,0.75957,2632.1,2632.0,20.02315]
[1748444436551,0.75957,2632.1,2632.0,1.2466]
[1748444436854,0.75957,2632.1,2631.7,3.2078]
[1748444436855,0.75972,2631.5,2631.4,4.7453]
[1748444437046,0.75972,2631.5,2631.2,1.2466]
[1748444437253,0.75981,2631.2,2631.1,18.039]
[1748444437555,0.75986,2631.0,2630.9,0.00570386]
[1748444438146,3.96766,2631.0,2630.9,0.00570386]
[1748444438954,0.75986,2631.0,2630.9,0.00570386]
[1748444439354,1.2338,2631.1,2630.9,1.32970386]
[1748444439652,0.75986,2631.0,2630.9,1.32970386]
[1748444440658,1.2338,2631.1,2630.9,0.76560386]
[1748444440861,0.76004,2630.5,2630.3,18.82606]
[1748444441057,3.2078,2631.0,2630.3,19.422]
[1748444441259,3.2078,2631.0,2630.9,0.7599]
[1748444441562,1.89936,2631.5,2630.7,4.104]
[1748444441563,1.89953,2631.2,2630.7,4.104]
[1748444441859,2.034,2630.9,2630.8,22.181]
[1748444442062,2.034,2630.9,2630.7,0.00570386]
[1748444442063,0.75992,2630.8,2630.7,0.00570386]
[1748444442263,0.75992,2630.8,2630.7,22.18370386]
[1748444442564,0.75992,2630.8,2630.7,22.17870386]
[1748444443366,0.75992,2630.8,2630.7,22.17470386]
[1748444443561,0.75992,2630.8,2630.7,22.93265386]
[1748444443967,2.03402,2630.9,2630.8,0.75992]
[1748444444161,3.96769,2631.0,2630.9,0.7599]
[1748444444364,0.75988,2631.0,2630.9,0.75988]
[1748444444767,0.7599,2630.9,2630.8,2.01281]
[1748444444967,1.3451,2631.1,2630.8,1.2529]
[1748444445368,0.7599,2630.9,2630.8,2.01281]
[1748444445566,0.7599,2630.9,2630.8,0.75991]
[1748444445860,1.3451,2631.1,2630.8,18.047]
[1748444446066,0.76551386,2631.2,2631.1,0.75984]
[1748444446259,2.11061386,2631.2,2631.1,4.104]
[1748444446464,0.75988,2631.1,2631.0,4.86384]
[1748444446664,1.3451,2631.1,2631.0,22.90384]
[1748444447671,0.00570386,2631.2,2631.1,0.75984]
[1748444447970,1.2699,2631.7,2631.6,0.75969]
[1748444448166,1.2699,2631.7,2631.6,4.86369]
[1748444448362,3.2078,2631.9,2631.8,0.75964]
[1748444448564,3.2078,2631.9,2631.7,2.11794]
[1748444448885,1.2699,2631.8,2631.7,22.143]
[1748444449379,1.2699,2631.8,2631.7,22.90266]
[1748444449876,1.2699,2631.8,2631.7,24.26096]
[1748444450082,0.11960386,2632.1,2632.0,0.75958]
[1748444450272,1.38420386,2632.1,2632.0,0.75958]
[1748444451080,0.11960386,2632.1,2632.0,0.75958]
[1748444451782,0.11960386,2632.1,2632.0,2.02638]
[1748444453078,0.11960386,2632.1,2632.0,24.15638]
[1748444453283,0.11960386,2632.1,2632.0,27.36418]
[1748444454081,3.2078,2632.8,2632.7,0.75938]
[1748444454485,3.2078,2632.8,2632.3,5.10647]
[1748444454679,1.2448,2632.7,2632.6,0.75938]
[1748444454983,2.00419,2632.7,2632.6,18.78241]
[1748444455184,2.00419,2632.7,2632.6,18.023]
[1748444455385,0.75943,2632.5,2632.4,0.00570386]
[1748444455681,3.96723,2632.5,2632.4,0.00570386]
[1748444455882,8.96723,2632.5,2632.4,0.00570386]
[1748444456485,3.79763,2632.2,2631.4,2.07334]
[1748444456684,3.2078,2631.8,2631.1,18.029]
[1748444456884,0.6559,2631.7,2631.6,0.75969]
[1748444457181,2.68198,2631.7,2631.4,1.3136]
[1748444457381,1.9223,2631.7,2631.5,18.029]
[1748444457582,0.75969,2631.6,2631.5,18.029]
[1748444457779,1.2664,2631.6,2631.5,18.7887]
[1748444457985,2.0261,2631.6,2631.5,18.7887]
[1748444458185,2.0261,2631.6,2631.5,0.7597]
[1748444458382,1.2664,2631.6,2631.4,0.75974]
[1748444458581,1.2664,2631.6,2631.3,0.00570386]